bitfinex-derivatives/quotes_BTCF0:USTF0_20220103
["timestamp","ask_amount","ask_price","bid_price","bid_amount"]
[1641214487093,0.78171728,47214.0,47212.0,0.14033567]
[1641214487293,0.188,47214.0,47212.0,0.14033567]
[1641214487798,0.18,47213.0,47210.0,0.0001]
[1641214487994,0.68623676,47215.0,47210.0,0.0001]
[1641214488195,0.59371728,47213.0,47210.0,0.0001]
[1641214488994,1.01495804,47215.0,47210.0,0.0001]
[1641214489196,0.83095804,47212.0,47210.0,0.0001]
[1641214490000,1.42585688,47213.0,47210.0,0.0001]
[1641214490501,0.184,47212.0,47210.0,0.0001]
[1641214491503,0.18,47211.0,47210.0,0.0001]
[1641214491703,0.24577,47212.0,47210.0,0.0001]
[1641214491903,0.06177,47212.0,47210.0,0.0001]
[1641214492503,0.25177,47212.0,47210.0,0.0001]
[1641214492702,1.67762688,47212.0,47210.0,0.0001]
[1641214494213,0.1080095,47211.0,47210.0,0.0001]
[1641214496608,0.2980095,47211.0,47210.0,0.0001]
[1641214497710,0.1080095,47211.0,47210.0,0.0001]
[1641214498309,1.2780095,47211.0,47210.0,0.0001]
[1641214498511,1.4670095,47211.0,47210.0,0.0001]
[1641214498814,0.5410095,47211.0,47210.0,0.0001]
[1641214499011,0.3610095,47211.0,47210.0,0.0001]
[1641214499409,1.4670095,47211.0,47210.0,0.0001]
[1641214499611,2.66879584,47211.0,47210.0,0.0001]
[1641214499812,2.47979584,47211.0,47210.0,0.0001]
[1641214500112,1.37379584,47211.0,47210.0,0.0001]
[1641214500610,1.55979584,47211.0,47210.0,0.0001]
[1641214501212,0.3580095,47211.0,47210.0,0.0001]
[1641214501812,0.1720095,47211.0,47210.0,0.0001]
[1641214502215,0.1080095,47211.0,47210.0,0.0001]
[1641214502414,0.2950095,47211.0,47210.0,0.0001]
[1641214504018,0.1080095,47211.0,47210.0,0.0001]
[1641214504418,0.37561768,47216.0,47210.0,0.0001]
[1641214504715,0.188,47211.0,47210.0,0.0001]
[1641214505815,1.53650005,47215.0,47210.0,0.0001]
[1641214506116,0.10813839,47211.0,47210.0,0.0001]
[1641214507316,1.61536166,47215.0,47210.0,0.0001]
[1641214507518,1.61536166,47215.0,47210.0,0.06747]
[1641214507817,1.42836166,47215.0,47210.0,0.06747]
[1641214508416,0.10813839,47214.0,47210.0,0.077264]
[1641214508617,0.10813839,47214.0,47212.0,0.18]
[1641214508817,0.10813839,47214.0,47213.0,0.002]
[1641214509019,0.10813839,47214.0,47213.0,0.001]
[1641214509422,0.10813839,47214.0,47212.0,0.20118046]
[1641214509619,0.10813839,47214.0,47213.0,0.001]
[1641214510217,0.10813839,47214.0,47212.0,0.20118046]
[1641214510419,0.28713839,47214.0,47213.0,0.001]
[1641214510821,0.28713839,47214.0,47212.0,0.16151613]
[1641214511020,0.28713839,47214.0,47213.0,0.001]
[1641214511219,0.28713839,47214.0,47212.0,0.14033567]
[1641214511622,0.179,47214.0,47213.0,0.18]
[1641214511820,1.56869733,47222.0,47213.0,0.181]
[1641214512020,1.56869733,47222.0,47213.0,0.18]
[1641214512420,1.75569733,47222.0,47213.0,0.18]
[1641214512620,1.75569733,47222.0,47212.0,0.21547567]
[1641214512822,1.93569733,47222.0,47212.0,0.21547567]
[1641214513220,1.93569733,47222.0,47212.0,0.14033567]
[1641214513420,0.50733567,47222.0,47212.0,0.14033567]
[1641214513837,0.32033567,47222.0,47212.0,0.14033567]
[1641214514036,0.14033567,47222.0,47212.0,0.14033567]
[1641214514238,0.32033567,47222.0,47212.0,0.14033567]
[1641214514437,2.86169733,47222.0,47212.0,0.14033567]
[1641214514636,0.18,47221.0,47212.0,0.14033567]
[1641214515036,1.93569733,47222.0,47212.0,0.14033567]
[1641214515436,1.42836166,47219.0,47212.0,0.14033567]
[1641214516438,1.61436166,47219.0,47212.0,0.14033567]
[1641214516636,1.61436166,47219.0,47218.0,0.001]
[1641214516838,1.61436166,47219.0,47218.0,0.08113]
[1641214517038,1.61436166,47219.0,47218.0,0.08213]
[1641214517236,1.61436166,47219.0,47218.0,0.08113]
[1641214517638,1.61436166,47219.0,47218.0,0.08213]
[1641214517837,1.42836166,47219.0,47218.0,0.08113]
[1641214518037,1.56869733,47222.0,47218.0,0.08213]
[1641214518439,0.185,47219.0,47218.0,0.08113]
[1641214518638,0.185,47219.0,47212.0,0.14033567]
[1641214519639,0.185,47219.0,47212.0,0.20033567]
[1641214519842,1.42836166,47221.0,47212.0,0.32033567]
[1641214520240,1.42836166,47221.0,47212.0,0.14033567]
[1641214520442,1.42836166,47220.0,47212.0,0.14033567]
[1641214521841,1.42836166,47219.0,47212.0,0.14033567]
[1641214522442,1.61836166,47219.0,47212.0,0.14033567]
[1641214523043,1.42836166,47218.0,47212.0,0.14033567]
[1641214523844,1.42836166,47217.0,47212.0,0.14033567]
[1641214524442,1.61636166,47217.0,47212.0,0.14033567]
[1641214525344,0.188,47217.0,47212.0,0.14033567]
[1641214525545,0.2726,47217.0,47212.0,0.14033567]
[1641214525744,0.4526,47217.0,47212.0,0.14033567]
[1641214525944,0.0846,47217.0,47212.0,0.14033567]
[1641214526344,1.51296166,47217.0,47212.0,0.14033567]
[1641214526543,1.69996166,47217.0,47212.0,0.14033567]
[1641214526945,0.1081814,47216.0,47212.0,0.14033567]
[1641214528544,0.1081814,47216.0,47215.0,0.001]
[1641214528545,0.2951814,47216.0,47215.0,0.001]
[1641214528945,0.2951814,47216.0,47212.0,0.14033567]
[1641214529145,0.3542414,47216.0,47212.0,0.14033567]
[1641214529345,0.3542414,47216.0,47215.0,0.001]
[1641214530148,0.3542414,47216.0,47212.0,0.14033567]
[1641214530346,0.2951814,47216.0,47212.0,0.14033567]
[1641214530747,0.2951814,47216.0,47215.0,0.001]
[1641214530945,0.187,47216.0,47215.0,0.001]
[1641214531746,0.187,47216.0,47212.0,0.14033567]
[1641214531946,1.42836166,47218.0,47212.0,0.14033567]
[1641214532550,0.188,47218.0,47212.0,0.14033567]
[1641214533846,1.42836166,47219.0,47212.0,0.14033567]
[1641214534047,1.42836166,47219.0,47217.0,0.001]
[1641214534247,1.42836166,47219.0,47212.0,0.14033567]
[1641214534447,1.61736166,47219.0,47212.0,0.14033567]
[1641214534648,1.61736166,47219.0,47212.0,0.32033567]
[1641214534846,1.61736166,47219.0,47218.0,0.001]
[1641214535050,0.189,47219.0,47218.0,0.001]
[1641214535450,0.189,47219.0,47212.0,0.32033567]
[1641214535652,0.189,47219.0,47218.0,0.001]
[1641214535851,1.42836166,47220.0,47218.0,0.001]
[1641214536148,1.42836166,47220.0,47212.0,0.32033567]
[1641214536349,1.42836166,47220.0,47212.0,0.14033567]
[1641214536549,1.42836166,47220.0,47212.0,0.32033567]
[1641214536550,1.62136166,47220.0,47212.0,0.32033567]
[1641214537051,1.62136166,47220.0,47219.0,0.001]
[1641214537849,1.42836166,47220.0,47219.0,0.001]
[1641214538353,1.42836166,47221.0,47213.0,0.009794]
[1641214538552,0.27319,47220.0,47213.0,0.009794]
[1641214539153,1.70155166,47220.0,47213.0,0.009794]
[1641214539654,1.70155166,47220.0,47219.0,0.001]
[1641214539955,1.51955166,47220.0,47213.0,0.009794]
[1641214540355,1.51955166,47220.0,47219.0,0.001]
[1641214540654,0.27819,47220.0,47213.0,0.009794]
[1641214541356,0.27819,47220.0,47219.0,0.001]
[1641214541556,0.27819,47220.0,47213.0,0.009794]
[1641214542356,0.09119,47220.0,47213.0,0.009794]
[1641214542556,0.22819,47220.0,47213.0,0.009794]
[1641214543757,0.09119,47220.0,47213.0,0.009794]
[1641214543955,0.18,47217.0,47213.0,0.009794]
[1641214544156,0.07542,47217.0,47213.0,0.009794]
[1641214544357,0.25542,47217.0,47213.0,0.009794]
[1641214544657,0.26442,47217.0,47212.0,0.14033567]
[1641214545858,0.07542,47217.0,47212.0,0.14033567]
[1641214546060,0.18,47214.0,47212.0,0.14033567]
[1641214546259,0.07542,47217.0,47212.0,0.14033567]
[1641214546459,0.15642,47217.0,47212.0,0.14033567]
[1641214546862,0.10808825,47216.0,47212.0,0.14033567]
[1641214547061,0.10808825,47216.0,47215.0,0.001]
[1641214547460,0.10808825,47216.0,47212.0,0.14033567]
[1641214548463,0.29208825,47216.0,47212.0,0.14033567]
[1641214549662,0.47208825,47216.0,47212.0,0.14033567]
[1641214549863,0.28808825,47216.0,47212.0,0.14033567]
[1641214550165,0.10808825,47215.0,47212.0,0.14033567]
[1641214551367,0.20236825,47215.0,47212.0,0.14033567]
[1641214552465,0.10808825,47214.0,47212.0,0.14033567]
[1641214553971,0.10808825,47214.0,47213.0,0.001]
[1641214554570,0.28308825,47214.0,47213.0,0.001]
[1641214554971,0.175,47214.0,47213.0,0.001]
[1641214555772,0.10808825,47214.0,47213.0,0.001]
[1641214556575,0.172,47214.0,47213.0,0.001]
[1641214557175,0.28008825,47214.0,47213.0,0.001]
[1641214557477,0.28008825,47214.0,47212.0,0.14033567]
[1641214557675,0.28008825,47214.0,47213.0,0.001]
[1641214557878,0.10808825,47214.0,47213.0,0.001]
[1641214558175,0.10808825,47214.0,47212.0,0.14033567]
[1641214558676,0.157,47214.0,47212.0,0.14033567]
[1641214559476,0.10808825,47213.0,47212.0,0.14033567]
[1641214560481,0.29708825,47213.0,47212.0,0.14033567]
[1641214561880,0.10808825,47213.0,47212.0,0.14033567]
[1641214562480,0.29508825,47213.0,47212.0,0.14033567]
[1641214563086,0.187,47213.0,47212.0,0.14033567]
[1641214563682,0.187,47213.0,47212.0,0.14133567]
[1641214563888,0.10808825,47213.0,47212.0,0.14133567]
[1641214564581,0.29308825,47213.0,47212.0,0.14133567]
[1641214565481,0.29308825,47213.0,47212.0,0.14033567]
[1641214565684,0.29308825,47213.0,47212.0,0.14133567]
[1641214566381,0.10808825,47213.0,47212.0,0.14133567]
[1641214566583,0.29008825,47213.0,47212.0,0.14133567]
[1641214567783,0.10808825,47213.0,47212.0,0.14133567]
[1641214568483,0.29308825,47213.0,47212.0,0.14133567]
[1641214569885,0.10808825,47213.0,47212.0,0.14133567]
[1641214570498,0.28908825,47213.0,47212.0,0.14133567]
[1641214571002,0.28908825,47213.0,47212.0,0.001]
[1641214571498,0.28908825,47213.0,47212.0,0.14033567]
[1641214571699,0.28908825,47213.0,47212.0,0.14133567]
[1641214571899,0.10808825,47213.0,47212.0,0.14033567]
[1641214572505,0.20208825,47213.0,47212.0,0.14033567]
[1641214573805,0.10808825,47213.0,47212.0,0.14133567]
[1641214574504,0.28208825,47213.0,47212.0,0.14133567]
[1641214575504,0.35822825,47213.0,47212.0,0.14133567]
[1641214575704,0.35822825,47213.0,47212.0,0.001]
[1641214575906,0.18422825,47213.0,47210.0,0.0001]
[1641214576606,0.37022825,47213.0,47210.0,0.0001]
[1641214577406,0.37022825,47213.0,47212.0,0.001]
[1641214577606,0.26214,47213.0,47212.0,0.001]
[1641214578610,0.44814,47213.0,47212.0,0.001]
[1641214579807,0.07614,47213.0,47212.0,0.001]
[1641214580608,0.26214,47213.0,47212.0,0.001]
[1641214581911,0.26214,47213.0,47210.0,0.0001]
[1641214583715,0.26214,47213.0,47212.0,0.001]
[1641214583911,0.07614,47213.0,47212.0,0.001]
[1641214584111,1.42614277,47215.0,47212.0,0.001]
[1641214584311,1.42614277,47215.0,47214.0,0.001]
[1641214584916,1.42614277,47216.0,47214.0,0.001]
[1641214585113,1.42614277,47216.0,47215.0,0.001]
[1641214585614,1.42614277,47217.0,47215.0,0.001]
[1641214585815,1.42614277,47217.0,47216.0,0.001]
[1641214586513,1.61814277,47217.0,47216.0,0.001]
[1641214586926,1.79814277,47217.0,47216.0,0.001]
[1641214587114,0.372,47217.0,47216.0,0.001]
[1641214587515,1.49918729,47217.0,47208.0,0.84109948]
[1641214587715,0.28067134,47209.0,47208.0,0.84109948]
[1641214587919,0.28067134,47209.0,47205.0,0.84109948]
[1641214588215,2.23957216,47208.0,47205.0,0.84109948]
[1641214588618,2.41957216,47208.0,47205.0,0.84109948]
[1641214589017,1.4256514,47207.0,47205.0,0.84109948]
[1641214589218,1.5040614,47207.0,47200.0,1.34119948]
[1641214590218,2.60359822,47207.0,47200.0,1.34119948]
[1641214590618,2.79359822,47207.0,47200.0,1.34119948]
[1641214590818,2.79359822,47207.0,47200.0,1.52119948]
[1641214591020,0.26841,47207.0,47201.0,0.84109948]
[1641214591219,0.19,47207.0,47201.0,0.84109948]
[1641214591620,1.28953682,47207.0,47201.0,0.84109948]
[1641214591921,1.09953682,47207.0,47202.0,0.14033567]
[1641214592522,1.28753682,47207.0,47202.0,0.14033567]
[1641214592921,1.28753682,47207.0,47204.0,0.18]
[1641214593726,0.10782788,47206.0,47204.0,0.18]
[1641214594424,0.10782788,47206.0,47205.0,0.84209948]
[1641214594624,0.28282788,47206.0,47205.0,0.84209948]
[1641214596025,0.175,47206.0,47205.0,0.8632832]
[1641214596629,0.181,47206.0,47205.0,0.8622832]
[1641214596828,0.181,47206.0,47205.0,0.9211532]
[1641214597027,0.181,47206.0,47205.0,0.89996948]
[1641214597227,0.181,47206.0,47205.0,0.89896948]
[1641214597428,0.181,47206.0,47205.0,0.89996948]
[1641214597629,0.28882788,47206.0,47205.0,0.89996948]
[1641214598028,0.10782788,47206.0,47205.0,0.89996948]
[1641214598229,0.10782788,47206.0,47205.0,0.89896948]
[1641214598527,0.10782788,47206.0,47205.0,0.89996948]
[1641214599129,1.4256514,47212.0,47205.0,0.90096948]
[1641214599331,1.4256514,47212.0,47211.0,0.001]
[1641214599528,1.4256514,47212.0,47209.0,0.009794]
[1641214599929,1.4256514,47212.0,47211.0,0.001]
[1641214600131,1.4256514,47213.0,47211.0,0.001]
[1641214600330,1.4256514,47213.0,47212.0,0.001]
[1641214600529,1.6176514,47213.0,47212.0,0.001]
[1641214601330,0.192,47213.0,47212.0,0.001]
[1641214601730,0.192,47213.0,47209.0,0.009794]
[1641214602132,0.29982788,47213.0,47209.0,0.009794]
[1641214602631,0.30082788,47213.0,47209.0,0.009794]
[1641214603334,0.10782788,47212.0,47209.0,0.009794]
[1641214604533,1.4256514,47213.0,47209.0,0.009794]
[1641214604734,0.185,47212.0,47209.0,0.097794]
[1641214605935,1.4256514,47213.0,47208.0,0.14033567]
[1641214606237,0.10782788,47211.0,47208.0,0.14033567]
[1641214606637,0.10782788,47211.0,47208.0,0.15033567]
[1641214606934,1.4256514,47212.0,47208.0,0.15033567]
[1641214608135,0.10782788,47212.0,47208.0,0.15033567]
[1641214608736,0.29082788,47212.0,47208.0,0.18033567]
[1641214609434,0.29082788,47212.0,47208.0,0.36033567]
[1641214609637,0.183,47212.0,47211.0,0.001]
[1641214610034,1.4256514,47213.0,47208.0,0.32033567]
[1641214610234,1.4256514,47213.0,47212.0,0.001]
[1641214610637,1.6186514,47213.0,47208.0,0.32033567]
[1641214610837,1.6186514,47213.0,47212.0,0.001]
[1641214611038,1.6186514,47213.0,47208.0,0.14033567]
[1641214611360,0.193,47213.0,47208.0,0.14033567]
[1641214611957,1.4256514,47214.0,47208.0,0.14033567]
[1641214612558,1.6166514,47214.0,47208.0,0.14033567]
[1641214614059,0.18,47213.0,47208.0,0.14033567]
[1641214614359,0.26703,47213.0,47208.0,0.14033567]
[1641214614761,1.4256514,47211.0,47208.0,0.14033567]
[1641214615961,1.4256514,47210.0,47208.0,0.14033567]
[1641214616562,1.6186514,47210.0,47208.0,0.14033567]
[1641214617265,0.193,47210.0,47208.0,0.14033567]
[1641214618063,1.4256514,47211.0,47208.0,0.14033567]
[1641214618662,1.7986514,47211.0,47203.0,0.84109948]
[1641214619764,1.7986514,47211.0,47202.0,1.14295565]
[1641214619765,0.06,47206.0,47202.0,1.14295565]
[1641214619965,1.4256514,47209.0,47202.0,1.12177082]
[1641214620165,0.18,47206.0,47202.0,1.12177082]
[1641214620365,1.4256514,47209.0,47202.0,1.12177082]
[1641214620766,0.187,47206.0,47202.0,1.12177082]
[1641214621268,0.187,47206.0,47202.0,0.28067134]
[1641214622571,1.4256514,47208.0,47202.0,0.28067134]
[1641214622769,0.186,47206.0,47202.0,0.28067134]
[1641214623370,1.18672889,47204.0,47202.0,0.28067134]
[1641214624072,0.83069042,47203.0,47202.0,0.28067134]
[1641214624269,0.83069042,47203.0,47202.0,0.28167134]
[1641214624769,1.02169042,47203.0,47202.0,0.28067134]
[1641214624971,1.02169042,47203.0,47202.0,0.28167134]
[1641214625970,0.93859316,47203.0,47202.0,0.28167134]
[1641214626769,1.12959316,47203.0,47202.0,0.28067134]
[1641214626971,1.02169042,47203.0,47202.0,0.28167134]
[1641214627771,1.12959316,47203.0,47202.0,0.28167134]
[1641214627968,0.93859316,47203.0,47202.0,0.28167134]
[1641214628770,1.12959316,47203.0,47202.0,0.28167134]
[1641214629371,1.02169042,47203.0,47202.0,0.28167134]
[1641214630171,0.93859316,47203.0,47202.0,0.28167134]
[1641214630772,1.12959316,47203.0,47202.0,0.28167134]
[1641214631172,1.02169042,47203.0,47202.0,0.28167134]
[1641214631772,1.02169042,47203.0,47202.0,0.28067134]
[1641214631972,0.83069042,47203.0,47202.0,0.28067134]
[1641214632174,0.83069042,47204.0,47202.0,0.28067134]
[1641214632375,0.59331429,47203.0,47202.0,0.28067134]
[1641214633575,0.188,47204.0,47202.0,0.28067134]
[1641214633876,1.37472889,47204.0,47202.0,0.28067134]
[1641214634074,1.18672889,47204.0,47203.0,0.001]
[1641214634275,1.29452679,47205.0,47202.0,0.28067134]
[1641214634674,0.188,47204.0,47202.0,0.28067134]
[1641214635676,0.2957979,47204.0,47202.0,0.28067134]
[1641214635973,0.1077979,47204.0,47202.0,0.28067134]
[1641214636375,0.1077979,47203.0,47200.0,0.5001]
[1641214636576,0.18,47202.0,47200.0,0.5001]
[1641214636777,0.1077979,47203.0,47200.0,0.5001]
[1641214637677,0.18,47201.0,47200.0,0.5001]
[1641214637878,0.2987979,47204.0,47200.0,0.5001]
[1641214638077,0.1077979,47204.0,47200.0,0.5001]
[1641214638278,0.42813357,47204.0,47200.0,0.5001]
[1641214638679,0.62213357,47204.0,47200.0,0.5001]
[1641214638879,1.1843078,47201.0,47200.0,0.5001]
[1641214639983,1.1843078,47202.0,47200.0,0.5001]
[1641214640581,0.1077979,47201.0,47200.0,0.5001]
[1641214641382,1.1843078,47201.0,47200.0,0.5001]
[1641214642281,1.2921057,47201.0,47200.0,0.5001]
[1641214642583,0.1077979,47201.0,47200.0,0.5001]
[1641214642781,0.3027979,47201.0,47200.0,0.5001]
[1641214643984,0.1077979,47201.0,47200.0,0.5001]
[1641214644784,0.3027979,47201.0,47200.0,0.5001]
[1641214644986,0.195,47201.0,47200.0,0.5001]
[1641214645985,0.1077979,47201.0,47200.0,0.5001]
[1641214646684,0.3007979,47201.0,47200.0,0.5001]
[1641214648084,0.1077979,47201.0,47200.0,0.5001]
[1641214648786,0.4817979,47201.0,47200.0,0.5001]
[1641214649989,0.2877979,47201.0,47200.0,0.5001]
[1641214650389,0.1077979,47201.0,47200.0,0.5001]
[1641214650588,2.31602661,47200.0,47195.0,0.84109948]
[1641214650988,2.3787673,47200.0,47195.0,0.84109948]
[1641214652189,1.286,47198.0,47193.0,1.20157069]
[1641214652389,0.14033567,47196.0,47193.0,1.20157069]
[1641214652603,0.14033567,47196.0,47192.0,0.84169694]
[1641214652604,0.14033567,47196.0,47194.0,0.6012121]
[1641214653302,0.14033567,47196.0,47192.0,0.84169694]
[1641214653504,1.5334493,47195.0,47190.0,1.20167069]
[1641214653704,1.6122793,47195.0,47190.0,0.0001]
[1641214654704,1.7972793,47195.0,47190.0,0.0001]
[1641214655004,0.09802937,47194.0,47186.0,1.20157069]
[1641214655204,0.09802937,47194.0,47183.0,0.02119338]
[1641214655205,1.63147867,47194.0,47185.0,1.20157069]
[1641214655403,2.73747867,47194.0,47185.0,1.20157069]
[1641214656406,0.14033567,47188.0,47185.0,1.20157069]
[1641214657004,1.18226601,47187.0,47185.0,1.20157069]
[1641214657407,1.18226601,47186.0,47184.0,1.20157069]
[1641214658209,1.29006391,47187.0,47184.0,1.20157069]
[1641214658809,1.48606391,47187.0,47185.0,1.20157069]
[1641214660009,1.29006391,47187.0,47185.0,1.20157069]
[1641214660512,0.1077979,47186.0,47185.0,1.20157069]
[1641214660914,0.2977979,47187.0,47185.0,0.84189902]
[1641214662010,0.1077979,47187.0,47185.0,0.84189902]
[1641214662409,0.1077979,47186.0,47185.0,0.84189902]
[1641214662609,0.1077979,47186.0,47184.0,0.84189902]
[1641214662813,0.1077979,47186.0,47185.0,0.189794]
[1641214663012,0.192,47187.0,47185.0,0.269874]
[1641214663413,0.192,47187.0,47185.0,0.28190088]
[1641214663712,0.192,47187.0,47185.0,0.10190088]
[1641214663911,0.192,47187.0,47186.0,0.01202688]
[1641214664113,0.35336072,47191.0,47186.0,0.01202688]
[1641214664311,0.35336072,47191.0,47186.0,0.19202688]
[1641214664511,0.58893453,47193.0,47186.0,0.33236255]
[1641214664712,0.187,47191.0,47186.0,0.14033567]
[1641214664910,0.187,47191.0,47186.0,0.32033567]
[1641214665111,0.187,47191.0,47186.0,0.14033567]
[1641214666113,0.35336072,47193.0,47186.0,0.32033567]
[1641214666314,0.35336072,47193.0,47186.0,0.14033567]
[1641214666514,0.35336072,47194.0,47191.0,0.14033567]
[1641214666716,0.189,47193.0,47191.0,0.14033567]
[1641214666913,0.189,47193.0,47192.0,0.5]
[1641214667113,0.189,47193.0,47191.0,0.14033567]
[1641214668115,0.35336072,47196.0,47191.0,0.14033567]
[1641214668522,0.35336072,47196.0,47191.0,0.23272567]
[1641214668817,0.54436072,47196.0,47191.0,0.41272567]
[1641214669619,0.191,47196.0,47191.0,0.41272567]
[1641214670019,0.35336072,47198.0,47191.0,0.41272567]
[1641214670418,0.35336072,47199.0,47191.0,0.41272567]
[1641214670820,0.194,47198.0,47191.0,0.41272567]
[1641214671019,0.194,47198.0,47192.0,0.18]
[1641214671223,0.194,47198.0,47197.0,0.20118743]
[1641214671420,0.194,47198.0,47197.0,0.21198143]
[1641214671620,0.194,47198.0,47197.0,0.189794]
[1641214671821,0.194,47198.0,47197.0,0.21098022]
[1641214672021,0.94268163,47201.0,47197.0,0.21098022]
[1641214672321,0.94268163,47201.0,47200.0,0.18]
[1641214672322,0.3537471,47201.0,47200.0,0.18]
[1641214672520,0.3537471,47201.0,47200.0,0.34152045]
[1641214673325,0.58893453,47203.0,47200.0,0.34152045]
[1641214673523,1.17786907,47207.0,47200.0,0.34152045]
[1641214673524,0.58893453,47207.0,47200.0,0.34152045]
[1641214673725,0.58893453,47207.0,47203.0,0.18]
[1641214673923,0.58893453,47207.0,47203.0,0.26088]
[1641214674125,0.58893453,47207.0,47203.0,0.08088]
[1641214674723,0.58893453,47207.0,47203.0,0.45688]
[1641214674924,0.58893453,47208.0,47203.0,0.45688]
[1641214675525,0.58893453,47208.0,47203.0,0.27688]
[1641214675825,0.58893453,47208.0,47203.0,0.45688]
[1641214676125,0.58893453,47208.0,47203.0,0.26088]
[1641214676326,0.58893453,47208.0,47203.0,0.08088]
[1641214676826,0.58893453,47208.0,47203.0,0.27588]
[1641214677225,0.58893453,47208.0,47203.0,0.195]
[1641214677927,0.58893453,47206.0,47203.0,0.195]
[1641214678128,0.64781453,47206.0,47200.0,0.14033567]
[1641214678730,0.64781453,47206.0,47200.0,0.33633567]
[1641214679129,0.82450835,47207.0,47200.0,0.33633567]
[1641214679130,0.58893453,47205.0,47200.0,0.33633567]
[1641214679928,0.58893453,47205.0,47201.0,0.18]
[1641214680731,0.1121344,47212.0,47201.0,0.376]
[1641214680932,1.4256514,47205.0,47201.0,0.376]
[1641214681734,0.1121344,47204.0,47201.0,0.376]
[1641214682134,0.1121344,47204.0,47201.0,0.18]
[1641214682333,0.1121344,47203.0,47201.0,0.18]
[1641214682734,0.1121344,47203.0,47201.0,0.378]
[1641214682934,0.1121344,47203.0,47202.0,0.02118447]
[1641214683135,0.1121344,47203.0,47202.0,0.1901761]
[1641214683434,1.4256514,47206.0,47202.0,0.3701761]
[1641214683635,1.4256514,47206.0,47202.0,0.1901761]
[1641214683835,1.4256514,47206.0,47205.0,0.001]
[1641214684238,1.4256514,47208.0,47205.0,0.001]
[1641214684636,1.4256514,47208.0,47207.0,0.14033567]
[1641214685037,1.4256514,47208.0,47207.0,0.22144567]
[1641214685638,3.61379799,47215.0,47207.0,0.22144567]
[1641214685639,0.35443419,47210.0,47207.0,0.22144567]
[1641214686738,0.35443419,47210.0,47207.0,0.41744567]
[1641214687340,0.35443419,47209.0,47207.0,0.41744567]
[1641214688040,0.59072365,47211.0,47207.0,0.41744567]
[1641214688041,0.35443419,47210.0,47207.0,0.41744567]
[1641214688239,0.35443419,47210.0,47207.0,0.22144567]
[1641214688739,0.35443419,47210.0,47207.0,0.41744567]
[1641214689940,0.35443419,47208.0,47207.0,0.41744567]
[1641214690141,0.35443419,47208.0,47207.0,0.22144567]
[1641214690741,0.35443419,47208.0,47207.0,0.41744567]
[1641214691743,0.35443419,47208.0,47207.0,0.27711]
[1641214692141,0.35443419,47208.0,47207.0,0.08111]
[1641214692341,0.35443419,47208.0,47200.0,0.3270961]
[1641214692742,0.35443419,47208.0,47207.0,0.196]
[1641214694158,0.35443419,47208.0,47200.0,0.3270961]
[1641214694560,0.35443419,47208.0,47200.0,0.14033567]
[1641214694762,0.59072365,47209.0,47200.0,0.33433567]
[1641214695362,0.35416626,47206.0,47200.0,0.33433567]
[1641214696163,0.35416626,47206.0,47200.0,0.14033567]
[1641214696463,0.35416626,47207.0,47200.0,0.14033567]
[1641214696664,0.35416626,47207.0,47200.0,0.19897567]
[1641214696866,0.35416626,47207.0,47200.0,0.39397567]
[1641214698166,0.35416626,47207.0,47200.0,0.19897567]
[1641214698765,0.35416626,47207.0,47201.0,0.02118544]
[1641214699768,0.35416626,47208.0,47201.0,0.02118544]
[1641214700867,0.18,47206.0,47201.0,0.194]
[1641214701267,0.35416626,47208.0,47201.0,0.194]
[1641214701466,0.18,47206.0,47201.0,0.194]
[1641214701869,1.286,47206.0,47201.0,0.194]
[1641214702068,0.12,47202.0,47201.0,0.194]
[1641214702270,0.35416626,47205.0,47191.0,1.93948988]
[1641214702669,0.14033567,47204.0,47191.0,1.93948988]
[1641214702869,0.14033567,47204.0,47195.0,0.32833567]
[1641214703270,0.35416626,47201.0,47195.0,0.32833567]
[1641214704269,0.35416626,47203.0,47195.0,0.14033567]
[1641214704473,0.35416626,47203.0,47195.0,0.16152398]
[1641214704869,0.35416626,47203.0,47195.0,0.34852398]
[1641214706273,0.35416626,47203.0,47195.0,0.16152398]
[1641214706873,1.4256514,47201.0,47195.0,1.192423]
[1641214708073,0.11274606,47200.0,47195.0,1.192423]
[1641214708273,0.11274606,47200.0,47195.0,1.003423]
[1641214708775,1.53839746,47200.0,47195.0,0.16152398]
[1641214708975,1.53839746,47200.0,47195.0,0.35352398]
[1641214709577,0.11274606,47199.0,47195.0,0.35352398]
[1641214709875,0.11274606,47199.0,47195.0,0.33233567]
[1641214710776,0.11274606,47199.0,47195.0,0.14033567]
[1641214710977,1.53839746,47199.0,47195.0,0.33333567]
[1641214711782,0.11274606,47198.0,47195.0,0.33333567]
[1641214712380,0.11274606,47198.0,47195.0,0.14033567]
[1641214712882,0.11274606,47198.0,47195.0,0.33433567]
[1641214714184,0.11274606,47198.0,47195.0,0.14033567]
[1641214714588,0.59050071,47196.0,47195.0,0.16152384]
[1641214714788,0.59050071,47196.0,47195.0,0.16252384]
[1641214714985,0.59050071,47196.0,47195.0,0.35752384]
[1641214715185,0.59050071,47196.0,47195.0,0.33633567]
[1641214715386,0.94431713,47196.0,47195.0,0.33633567]
[1641214715586,0.35381642,47196.0,47195.0,0.33633567]
[1641214716186,0.35381642,47196.0,47195.0,0.14033567]
[1641214716387,0.35381642,47196.0,47195.0,0.14133567]
[1641214716988,0.35381642,47196.0,47195.0,0.3575227]
[1641214717190,0.35381642,47196.0,47195.0,0.3565227]
[1641214717689,0.35381642,47196.0,47195.0,0.33533567]
[1641214717889,0.59050071,47198.0,47195.0,0.33533567]
[1641214718089,0.59050071,47197.0,47195.0,0.33533567]
[1641214718688,0.59050071,47196.0,47195.0,0.33533567]
[1641214718987,0.59050071,47196.0,47195.0,0.53133567]
[1641214719888,0.826701,47197.0,47195.0,0.53133567]
[1641214720091,0.12357166,47196.0,47195.0,0.53133567]
[1641214720289,0.12357166,47196.0,47195.0,0.14033567]
[1641214720988,0.12357166,47196.0,47195.0,0.33733567]
[1641214722291,0.12357166,47196.0,47195.0,0.14033567]
[1641214722593,0.95027266,47196.0,47195.0,0.14033567]
[1641214722991,0.95027266,47196.0,47195.0,0.33533567]
[1641214723691,0.826701,47196.0,47195.0,0.33533567]
[1641214723891,0.58938439,47196.0,47195.0,0.33533567]
[1641214724391,0.58938439,47196.0,47195.0,0.14033567]
[1641214724990,0.58938439,47196.0,47195.0,0.33733567]
[1641214725393,0.58938439,47197.0,47195.0,0.33733567]
[1641214726390,0.58938439,47197.0,47195.0,0.14033567]